Cogmind - Beta 11.1 --- EXPLORER MODE // 2022.11.24 @ 12:08:13 Player: darlorth Result: Destroyed by G-47 Trooper with Particle Gun Performance ------------- Evolutions (2) 1000 Regions Visited (6) 1200 Robots Destroyed (41) 205 Value Destroyed (1084) 1084 Prototype IDs (5) 100 Alien Tech Used (0) 0 Bonus (-343) -343 TOTAL SCORE: 3246 Bonus ------- High Alert Combat Kills 71 Follower Combat Kills 68 Aligned with FarCom 300 Friendly Fire -782 Cogmind --------- Core Integrity 0/550 Matter 300/300 Energy 30/100 System Corruption 4% Temperature Cool (9) Movement Core (100) Ox1 Location -8/Storage Parts ------- > --- POWER (1) -------- (None) > --- PROPULSION (3) --- (None) > --- UTILITY (6) ------ Heat Sink Improved Utility Shielding EX Chip 1 > --- WEAPON (2) ------- Longsword +1 > --- INVENTORY (5) ---- Large Storage Unit Advanced Weight Redist. System Reaction Control System Improved Utility Shielding Improved Utility Shielding Peak State ------------ > --- POWER ------------ Makeshift Power Source > --- PROPULSION ------- Airjet Aerolev Unit Aerolev Unit > --- UTILITY ---------- Medium Storage Unit Experimental Targeting Computer Improved Utility Shielding EX Chip 1 System Shield Recalibrator > --- WEAPON ----------- Heavy Flail Longsword +1 > --- INVENTORY -------- Nuclear Core Aerolev Unit Aerolev Unit Aerolev Unit Large Storage Unit Reaction Control System Improved Utility Shielding Improved Utility Shielding Improved Utility Shielding Improved Utility Shielding [Rating: 48] Favorites ----------- Power Ion Engine Engine Ion Engine Power Core Light Nuclear Core Propulsion Aluminum Leg Leg Aluminum Leg Hover Unit Aerolev Unit Utility Light Armor Plating Device Heat Sink Storage Medium Storage Unit Processor Improved Signal Interpreter Hackware EX Chip 1 Protection Light Armor Plating Weapon Maul Ballistic Gun Assault Rifle Launcher Rocket Launcher Impact Weapon Maul Slashing Weapon Longsword +1 Special Melee Weapon Improved Datajack Build | -11 -10 -10 -10 -9 -8 -8 ------- Run | Scr Mat Min Exi Min Mat Sto Slots Evolved 5 | . 1 . . . 4 . Power . | . . . . . . . Propulsion 1 | . 1 . . . . . Utility 4 | . . . . . 4 . Weapon . | . . . . . . . Parts Attached 52 | 7 6 . 6 1 10 22 Power 7 | 1 . . 1 . . 5 Engine 5 | 1 . . 1 . . 3 Core 2 | . . . . . . 2 Reactor . | . . . . . . . Propulsion 13 | 2 2 . 2 . 2 5 Treads . | . . . . . . . Leg 4 | 2 2 . . . . . Wheel . | . . . . . . . Hover 9 | . . . 2 . 2 5 Flight . | . . . . . . . Utility 21 | 2 1 . 1 . 7 10 Device 3 | . . . . . . 3 Storage 1 | . . . . . 1 . Processor 2 | . . . . . . 2 Hackware 8 | . . . 1 . 5 2 Protection 7 | 2 1 . . . 1 3 Artifact . | . . . . . . . Weapon 11 | 2 3 . 2 1 1 2 Energy Gun . | . . . . . . . Energy Cannon . | . . . . . . . Ballistic Gun 2 | 2 . . . . . . Ballistic Cannon . | . . . . . . . Launcher 2 | . . . 1 1 . . Special Weapon . | . . . . . . . Impact Weapon 4 | . 3 . . . 1 . Slashing Weapon 2 | . . . 1 . . 1 Piercing Weapon . | . . . . . . . Special Melee Weapon 1 | . . . . . . 1 Unidentified Prototypes 5 | . . . 1 . 1 3 Parts Lost 17 | . . . 2 . 1 14 Power 2 | . . . . . . 2 Propulsion 4 | . . . . . . 4 Utility 10 | . . . 2 . 1 7 Weapon 1 | . . . . . . 1 Highest Loss Streak 6 | . . . 2 . 1 6 To Critical Strikes . | . . . . . . . Average Slot Usage (%) 93 | . 91 100 98 75 90 91 Engine 9 | . 12 12 12 12 8 4 Leg 18 | . 30 37 34 12 2 . Hover 11 | . . . 2 25 22 22 Device 2 | . . . . . . 5 Storage 2 | . . . . . 2 7 Hackware 10 | . . . 1 . 35 20 Protection 15 | . 24 25 21 . 1 9 Launcher 1 | . . . 2 12 7 . Impact Weapon 11 | . 23 25 13 . . 6 Slashing Weapon 6 | . . . 8 12 8 8 Naked Turns . | . . . . . . . Heaviest Build 30 | 13 15 15 15 11 24 30 Greatest Support 32 | 20 30 30 30 24 32 28 Greatest Overweight (x) 2 | . . . . . . 2 Average Overweight (x) . | . . . . . . . Largest Inventory Capacity 10 | 5 5 5 5 5 10 10 Average Capacity 6 | 5 5 5 5 5 6 9 Most Carried 10 | 3 5 5 5 5 6 10 Average Carried 5 | . 4 5 4 5 3 8 Final Capacity 10 | 5 5 5 5 5 10 5 Final Carried 6 | 1 5 5 5 5 6 5 Class Distribution -------------------- 100% | Hacker-Mutant Dominant Class ---------------- Hacker-Mutant | -10/Materials Hacker-Mutant | -10/Mines Hacker-Mutant | -10/Exiles Hacker-Mutant | -9/Mines Hacker-Mutant | -8/Materials Hacker-Mutant | -8/Storage Resources | -11 -10 -10 -10 -9 -8 -8 ----------- Run | Scr Mat Min Exi Min Mat Sto Matter Collected 739 | 230 60 40 32 16 144 217 Remotely . | . . . . . . . Salvage Created 1528 | . 7 . 21 23 156 1321 Parts 101 | . . . 14 7 10 70 Haulers Intercepted 5 | . . . . . 1 4 Recyclers Shooed . | . . . . . . . Parts Field Recycled . | . . . . . . . Retrieved Matter . | . . . . . . . Parts Self-Destructed . | . . . . . . . Prevented . | . . . . . . . Kills | -11 -10 -10 -10 -9 -8 -8 ------- Run | Scr Mat Min Exi Min Mat Sto Combat Hostiles Destroyed 26 | . . . 2 2 2 20 Melee 22 | . . . . . 2 20 AOE 4 | . . . 2 2 . . Classes Destroyed 10 | . 1 . 1 2 2 4 Worker 6 | . . . . 1 . 5 Hauler 5 | . . . . . 1 4 Mechanic 1 | . . . . . . 1 Operator 1 | . . . . . . 1 Watcher 3 | . 1 . . . . 2 Swarmer 5 | . . . . 2 . 3 Grunt 10 | . . . . . . 10 Brawler 1 | . . . . . . 1 Sentry 8 | . . . . . 2 6 Assembled 2 | . . . 2 . . . Best Kill Streak 7 | . 1 . 2 3 3 7 Combat Bots Only 6 | . . . 2 2 2 6 Max Kills in Single Turn 2 | . 1 . 1 2 1 1 Gunslinging . | . . . . . . . Exploded 1 | . . . 1 1 . . Melee 1 | . . . . . 1 1 Uniques/NPCs Destroyed 2 | . . . 2 . . . EX-DEC (-10/Exiles) EX-BIN (-10/Exiles) Combat | -11 -10 -10 -10 -9 -8 -8 -------- Run | Scr Mat Min Exi Min Mat Sto Damage Taken 2160 | . . . 369 . 276 1515 Core 629 | . . . 74 . 55 500 Absorbed by Shields . | . . . . . . . Redirected to Shielding 210 | . . . 50 . . 160 Core Remaining (%) 85 | 100 . . . 70 . . Volleys Fired 4 | . . . 2 2 . . Largest 1 | . . . 1 1 . . Hottest 33 | . . . 30 33 . . Shots Fired 4 | . . . 2 2 . . Gun . | . . . . . . . Cannon . | . . . . . . . Launcher 4 | . . . 2 2 . . Special . | . . . . . . . Kinetic . | . . . . . . . Thermal . | . . . . . . . Explosive 4 | . . . 2 2 . . Electromagnetic . | . . . . . . . Robot Hit Streak 1 | . . . . 1 . . Robot Miss Streak 1 | . . . . 1 . . Penetration Max . | . . . . . . . Secondary Targets . | . . . . . . . Shots Hit Robots 83 | . 2 . 2 1 9 69 Core Hits 41 | . . . 5 4 3 29 Critical Kills . | . . . . . . . Critical Parts Destroyed 2 | . 1 . . . . 1 Critical Strikes 2 | . 1 . . . . 1 Smash 2 | . 1 . . . . 1 Melee Attacks 103 | . 6 . 2 . 11 84 Impact 15 | . 6 . . . . 9 Slashing 88 | . . . 2 . 11 75 Piercing . | . . . . . . . Sneak Attacks 15 | . . . 1 . 1 13 Combat Hostiles . | . . . . . . . Follow-up Attacks 6 | . 1 . . . . 5 Damage Inflicted 4934 | . 103 . 292 177 482 3880 Guns . | . . . . . . . Cannons . | . . . . . . . Explosions 320 | . . . 143 177 . . Melee 4614 | . 103 . 149 . 482 3880 Ramming . | . . . . . . . Kinetic . | . . . . . . . Thermal . | . . . . . . . Explosive 320 | . . . 143 177 . . Electromagnetic . | . . . . . . . Impact 411 | . 103 . . . . 308 Slashing 4203 | . . . 149 . 482 3572 Piercing . | . . . . . . . Highest Corruption 4 | . . . . . . 4 Average Corruption 2 | . . . . . . 2 Corruption Purged . | . . . . . . . Corruption Blocked . | . . . . . . . Effects 8 | . . . . . . 8 Message Errors 1 | . . . . . . 1 Matter Fused 2 | . . . . . . 2 Heat Flow Errors 1 | . . . . . . 1 Energy Discharges 2 | . . . . . . 2 Data Loss (minor) 2 | . . . . . . 2 Overload Shots . | . . . . . . . Overflow Damage 579 | . 73 . 5 . 30 471 Projectiles . | . . . . . . . Explosions . | . . . . . . . Melee 579 | . 73 . 5 . 30 471 Knockbacks 2 | . . . . . . 2 Impact 2 | . . . . . . 2 Kinetic . | . . . . . . . Secondary . | . . . . . . . Self-Inflicted Damage . | . . . . . . . Shots . | . . . . . . . Rammed . | . . . . . . . Targets Rammed . | . . . . . . . Kicked . | . . . . . . . Crushed . | . . . . . . . Highest Temperature 426 | . . . 12 20 16 426 Average Temperature 108 | . . . 6 10 6 152 Received Heat Transfer 1179 | . . . . . 126 1053 Effects 1 | . . . . . . 1 Shutdowns 1 | . . . . . . 1 Siege Activations . | . . . . . . . Robots Corrupted . | . . . . . . . Combat Hostiles . | . . . . . . . Parts Fried 2 | . 1 . . . . 1 Impact Corruptions 7 | . 4 . . . . 3 Robots Melted . | . . . . . . . Combat Hostiles . | . . . . . . . Parts Melted 1 | . . . . . . 1 Heat Transferred . | . . . . . . . Parts Sabotaged . | . . . . . . . Parts Stolen . | . . . . . . . Parts Stripped . | . . . . . . . Power Chain Reactions . | . . . . . . . Missiles Intercepted . | . . . . . . . Alert | -11 -10 -10 -10 -9 -8 -8 ------- Run | Scr Mat Min Exi Min Mat Sto Peak Influence 483 | . 36 9 . 84 127 483 Initial 23 | . . 9 . . 23 4 Average 133 | . 16 9 . 11 51 261 Maximum Alert Level 2 | . . . . . . 2 Low Security (%) 66 | 100 100 100 . 100 100 29 Level 1 31 | . . . . . . 66 Level 2 2 | . . . . . . 4 Level 3 . | . . . . . . . Level 4 . | . . . . . . . Level 5 . | . . . . . . . High Security . | . . . . . . . Max Security . | . . . . . . . Squads Dispatched 6 | . . . . . . 6 Investigation 3 | . . . . . . 3 Extermination . | . . . . . . . Reinforcement . | . . . . . . . Assault 2 | . . . . . . 2 Garrison 1 | . . . . . . 1 Intercept . | . . . . . . . Searches Triggered . | . . . . . . . Construction Impeded . | . . . . . . . Haulers Reinforced . | . . . . . . . Active Scanning Responses . | . . . . . . . Cargo Convoy Interrupts . | . . . . . . . Stealth | -11 -10 -10 -10 -9 -8 -8 --------- Run | Scr Mat Min Exi Min Mat Sto Distress Signals . | . . . . . . . Communications Jammed . | . . . . . . . Distress Signals . | . . . . . . . Times Spotted 61 | . 2 . 9 2 5 43 Peak Tracking Total 15 | . 1 . 10 2 4 15 Tactical Retreats 2 | . . . . . . 2 Traps | -11 -10 -10 -10 -9 -8 -8 ------- Run | Scr Mat Min Exi Min Mat Sto Traps Triggered 4 | . 1 . . . . 3 Indirectly . | . . . . . . . Trap Hack Attempts 11 | . . . . . . 11 Triggered . | . . . . . . . Disarmed . | . . . . . . . Reprogrammed 2 | . . . . . . 2 Reused 2 | . . . . . . 2 Traps Extracted . | . . . . . . . Installed . | . . . . . . . Triggered 2 | . . . . . . 2 Machines | -11 -10 -10 -10 -9 -8 -8 ---------- Run | Scr Mat Min Exi Min Mat Sto Machines Disabled 7 | . . . 3 2 . 2 Max in Single Turn 2 | . . . 2 1 . 1 Garrison Access 1 | . . . . . . 1 Machines Sabotaged . | . . . . . . . Garrisons Compromised . | . . . . . . . Overloaded Fab Kills . | . . . . . . . Hacking | -11 -10 -10 -10 -9 -8 -8 --------- Run | Scr Mat Min Exi Min Mat Sto Machines Accessed 15 | . 1 . . . 3 11 Terminals 13 | . 1 . . . 2 10 Fabricators . | . . . . . . . Repair Stations . | . . . . . . . Recycling Units . | . . . . . . . Scanalyzers 1 | . . . . . 1 . Garrison Access 1 | . . . . . . 1 Total Hacks 52 | . 3 . . . 16 33 Successful 32 | . 3 . . . 12 17 Failed 20 | . . . . . 4 16 Catastrophic 4 | . . . . . . 4 Database Lockouts . | . . . . . . . Manual 35 | . 3 . 1 . 10 21 Terminals 45 | . 3 . . . 10 32 Fabricators . | . . . . . . . Repair Stations . | . . . . . . . Recycling Units . | . . . . . . . Scanalyzers 6 | . . . . . 6 . Garrison Access 1 | . . . . . . 1 Terminal Hacks 24 | . 3 . . . 6 15 Part Schematic 7 | . 1 . . . 2 4 Open Door 3 | . . . . . . 3 Terminal Index 3 | . 1 . . . 1 1 Fabricator Index 1 | . . . . . . 1 Unreport Threat 2 | . . . . . 2 . Dispatch Records 4 | . . . . . 1 3 Patrol Status 1 | . . . . . . 1 Transport Status 1 | . . . . . . 1 Hauler Manifests 1 | . 1 . . . . . Zone Layout 1 | . . . . . . 1 Fabricator Hacks . | . . . . . . . Repair Station Hacks . | . . . . . . . Recycling Unit Hacks . | . . . . . . . Scanalyzer 6 | . . . . . 6 . Insert Component 3 | . . . . . 3 . Analyze 3 | . . . . . 3 . Garrison Access Hacks 1 | . . . . . . 1 Seal Access 1 | . . . . . . 1 Unauthorized Hacks 1 | . . . . . . 1 Terminals 1 | . . . . . . 1 Disrupt 1 | . . . . . . 1 Fabricators . | . . . . . . . Repair Stations . | . . . . . . . Recycling Units . | . . . . . . . Scanalyzers . | . . . . . . . Garrison Access . | . . . . . . . Data Cores Recovered 1 | . . . . . . 1 Used . | . . . . . . . Hacking Detections 12 | . 1 . . . 3 8 Full Trace Events 3 | . . . . . . 3 Feedback Events . | . . . . . . . Feedback Blocked . | . . . . . . . Robot Schematics Acquired . | . . . . . . . Robots Built . | . . . . . . . Authchips . | . . . . . . . Time . | . . . . . . . Total Robot Build Rating . | . . . . . . . Part Schematics Acquired 9 | . 1 . . . 4 4 Parts Built . | . . . . . . . Authchips . | . . . . . . . Time . | . . . . . . . Total Part Build Rating . | . . . . . . . Parts Repaired . | . . . . . . . Time . | . . . . . . . Parts Recycled . | . . . . . . . Recycled Matter . | . . . . . . . Retrieved Matter . | . . . . . . . Retrieved Components . | . . . . . . . Parts Scanalyzed 3 | . . . . . 3 . Part Schematics Acquired 2 | . . . . . 2 . Parts Damaged . | . . . . . . . Bothacking | -11 -10 -10 -10 -9 -8 -8 ------------ Run | Scr Mat Min Exi Min Mat Sto Used RIF Installer . | . . . . . . . Robots Hacked . | . . . . . . . Non-combat . | . . . . . . . Combat . | . . . . . . . Robot Hacks Applied . | . . . . . . . Relay Couplers Released . | . . . . . . . Fabnet Peak Effective % . | . . . . . . . Robots Rewired . | . . . . . . . Allies Hacked . | . . . . . . . Hacks Repelled . | . . . . . . . Allies | -11 -10 -10 -10 -9 -8 -8 -------- Run | Scr Mat Min Exi Min Mat Sto Total Allies 2 | . . . . . . 2 Largest Group 2 | . . . . . . 2 Highest-Rated Group 62 | . . . . . . 62 Highest-Rated Ally 31 | . . . . . . 31 Total Orders . | . . . . . . . Ally Attacks 24 | . . . 14 . . 10 Total Damage 928 | . . . 716 . . 212 Kills 9 | . . . 7 . . 2 Allies Corrupted . | . . . . . . . Allies Melted . | . . . . . . . Turrets Deployed 1 | . . . 1 . . . Intel | -11 -10 -10 -10 -9 -8 -8 ------- Run | Scr Mat Min Exi Min Mat Sto Robot Analysis Total . | . . . . . . . Derelict Logs Recovered 1 | . . 1 . . . . Drone Launches . | . . . . . . . Drone Recoveries . | . . . . . . . Exploration | -11 -10 -10 -10 -9 -8 -8 ------------- Run | Scr Mat Min Exi Min Mat Sto Turns Passed 1988 | 71 192 273 541 87 136 688 Spaces Moved 1866 | 48 135 228 451 107 147 750 Core 8 | 7 . . . . . 1 Treads . | . . . . . . . Legs 786 | 41 135 228 382 . . . Wheels . | . . . . . . . Hover 1072 | . . . 69 107 147 749 Flight . | . . . . . . . Fastest Speed 45 | 50 120 120 76 76 52 45 Average Speed 87 | 109 120 120 113 76 61 61 Slowest Speed 170 | 120 120 120 120 76 76 170 Overloaded Moves . | . . . . . . . Propulsion Burnouts . | . . . . . . . Robots Hopped . | . . . . . . . Cave-ins Triggered 1 | . . . . . . 1 Exploration Rate (%) 41 | 3 24 52 86 34 13 81 Regions Visited 6 Branch Regions 4 Pre-discovered Areas . | . . . . . . . Known Exits Taken 6 | 1 1 1 1 1 1 . Unknown Exits Taken . | . . . . . . . Scrap Searched 1 | . . 1 . . . . Spaces Dug 13 | . 3 . . . 2 8 Terrain Destroyed 26 | . 3 . 6 7 2 8 Melee 13 | . 3 . . . 2 8 Projectile . | . . . . . . . AOE 13 | . . . 6 7 . . Terrain Rammed . | . . . . . . . Walls Destroyed . | . . . . . . . Machines Disabled . | . . . . . . . Actions | -11 -10 -10 -10 -9 -8 -8 --------- Run | Scr Mat Min Exi Min Mat Sto Total 2116 | 66 153 227 479 110 180 901 Wait 11 | 4 . . . . . 7 Move 1860 | 47 134 227 450 106 146 750 Hop . | . . . . . . . Pick Up 49 | 8 6 . 8 . 10 17 Fast Attach 18 | . 4 . 3 1 1 9 Attach 24 | 7 1 . . . 7 9 Detach 1 | . . . . . . 1 Swap 10 | . 1 . 3 . 2 4 Drop 35 | . 2 . 11 1 3 18 Fire 4 | . . . 2 2 . . Melee 93 | . 5 . 2 . 11 75 Ram . | . . . . . . . Kick . | . . . . . . . Crush . | . . . . . . . Escape Stasis . | . . . . . . . Rewire . | . . . . . . . Trap 11 | . . . . . . 11 Miscellaneous . | . . . . . . . Route ------- -11/Scrapyard -10/Materials -10/Mines (discovered 3 exits: *Mat x2 / *Exi) -10/Exiles -9/Mines -8/Materials -8/Storage (discovered 1 exit: *Fac) History --------- Turn | Location | Event 20 | -11/Scrapyard | Identified exit to Materials 20 | -11/Scrapyard | Discovered exit to Materials (range 16) 72 | -11/Scrapyard | Entered Materials 72 | -10/Materials | Evolved 1 slot: Propulsion x1 190 | -10/Materials | Identified exit to Mines 190 | -10/Materials | Discovered exit to Mines (range 14) 264 | -10/Materials | Entered Mines 294 | -10/Mines | Met a Derelict bent on vengeance 304 | -10/Mines | Build established: Hacker-Mutant 305 | -10/Mines | Identified exit to Materials 305 | -10/Mines | Discovered exit to Materials (range 12) 414 | -10/Mines | Discovered exit to Materials (range 4) 467 | -10/Mines | Learned location of 1 exit from Materials 532 | -10/Mines | Deemed a non-threat by the Exiles lab entrance 532 | -10/Mines | Identified exit to Exiles 532 | -10/Mines | Discovered exit to Exiles (range 5) 537 | -10/Mines | Entered Exiles 566 | -10/Exiles | Met 8R-AWN 588 | -10/Exiles | Met EX-HEX 624 | -10/Exiles | Met EX-BIN 638 | -10/Exiles | Aligned with FarCom system 639 | -10/Exiles | Given EX-Vault access code 686 | -10/Exiles | Opened EX-Vault 694 | -10/Exiles | Found Prototype Slashing Weapon 695 | -10/Exiles | Identified Longsword +1 725 | -10/Exiles | Warned to stay clear of 0b10 Research branches 761 | -10/Exiles | Met EX-DEC 819 | -10/Exiles | Visited The Gauntlet 940 | -10/Exiles | Destroyed EX-DEC 941 | -10/Exiles | Attacked by the Exiles 945 | -10/Exiles | DAS Turret deployed 951 | -10/Exiles | Allies destroyed EX-BIN 1071 | -10/Exiles | Identified exit to Mines 1071 | -10/Exiles | Discovered exit to Mines (range 11) 1078 | -10/Exiles | Left Exiles lab with Longsword +1 1078 | -10/Exiles | Entered Mines 1088 | -9/Mines | Received a Rocket Launcher from a helpful Derelict 1152 | -9/Mines | Identified exit to Materials 1152 | -9/Mines | Discovered exit to Materials (range 12) 1165 | -9/Mines | Entered Materials 1165 | -8/Materials | Evolved 4 slots: Utility x4 1166 | -8/Materials | Identified exit to Storage 1301 | -8/Materials | Entered Storage 1507 | -8/Storage | Found Prototype Processor 1507 | -8/Storage | Identified Exp. Targeting Computer 1621 | -8/Storage | Identified exit to Factory 1621 | -8/Storage | Discovered exit to Factory (range 16) 1699 | -8/Storage | Garrison activated, responded to threat 1744 | -8/Storage | Met a pair of Derelict thieves 1879 | -8/Storage | Core integrity fell below 50% 1943 | -8/Storage | Lost 6 parts (1p3n1u1w) 1969 | -8/Storage | Crushed by falling debris 1975 | -8/Storage | Core integrity fell below 20% 1989 | -8/Storage | Destroyed by G-47 Trooper with Particle Gun Last Messages --------------- 01954_ Longsword +1 severed. 01954_ Acquired Longsword +1. 01957_ K-01 Serf cleans the Transfer Shaft. 01963_ G-47 Trooper destroyed. 01969_ System corrupted: Energy discharge (-14). 01969_ The unstable cave ceiling collapses. 01969_ Crushed by falling debris. 01969_ System Shield destroyed. 01969_ System corrupted by crushing effect (+1). 01969_ Aerolev Unit destroyed. 01969_ System corrupted by crushing effect (+1). 01971_ The unstable cave ceiling collapses. 01971_ G-47 Trooper crushed by falling debris. 01971_ 57 Matter crushed. 01975_ G-50 Soldier destroyed. 01983_ Y-45 Defender destroyed. 01985_ G-47 Trooper destroyed. 01986_ Slug penetrates Wall. 01987_ Y-45 Defender destroyed. [Achievement: Collector] Map ----- +----------------------------------------------------+ | ????????????# #????? + #?????? | | ????????????#=#????? # #????## | | ????????????# #????? # #???# | | ????????????#%#????? + ##### | | ????????????#%#?????### | | ????????????#*######### | | ????????????# # """! /] | | ????????????# # """!%##### ####?# | | ????????????# # """!!#???# #????# | | ????????##### # !!#???# #????# | | ????????#] + # !* #???# #????# | | ????????###T# + =%= #???# #????# | | ??????????### ##+#####?###+###### | | ????????????# ###???# # | | ????????????# # ##### # | | ????????????# # # # | | ????????????# # """ # """""" # | | ????????????# # """ # "!* ! + | | ????????????#% # """ # "!!/[" # | | ????????????#[ # """ # """""" # | | ??????????? # / """ # # | | ??????????? # # " / | | ??????????? + #################+ | | ?????????##T# #????###????# | | ?????????#=## ###??#??????# """! | | ?????#####@## # "]]#????????"[ % | | ???#^ ==g[h + ]]#????????"""" | | ???# =*!*[=! # "]]#???????????? | | ???# """%=""" #T#??#???????????? | | ???# """%!""" ###??????????????? | | ???# """ """ #????????????????? | | ???# #????????????????? | | ???# ????????????????? | | ???################???????????????? | | ??????????????????????????????????? | | ??????????????????????????????????? | | ??????????????????????????????????? | | | | | | | | | | | | | | | | | | | | | | | | | | | +----------------------------------------------------+ Best States ------------- Heat Dissipation 41 Energy Generation 15 Energy Capacity 280 Matter Stores 300 Matter Capacity 300 Sight Range 16 Robot Scan Range 15 Terrain Scan Density 10 Armor Coverage 150 Resistance: KI 35 Resistance: TH 35 Resistance: EX 35 Resistance: EM 35 Resistance: I 35 Resistance: S 35 Resistance: P 35 Propulsion Shielding 33 Utility Shielding 66 Evasion (%) 56 Targeting Accuracy 12 Offensive Hacking 34 Defensive Hacking 21 Item Schematics ----------------- Lrg. Storage Unit | -10/Materials | Hacked Aerolev Unit | -8/Materials | Scanalyzed Airjet | -8/Materials | Scanalyzed Hacking Suite | -8/Materials | Hacked System Shield | -8/Materials | Hacked Actuator Array | -8/Storage | Hacked Imp. Utility Shielding | -8/Storage | Hacked Cesium-ion Thruster | -8/Storage | Hacked Imp. Cryofiber Web | -8/Storage | Hacked Robot Schematics ------------------ None Fabricated ------------ Nothing Alien Tech Used ----------------- None Achievements -------------- Collector Challenges ------------ None Game ------ Seed LightWeaponMicroactuators Manual? 0 Play Time 00:43:28 Cumulative 275.3 hours Start 2022.11.24 @ 11:22:30 End 2022.11.24 @ 12:08:13 Sessions 1 Manual Loads 0 Difficulty Explorer Special Mode None Game No. 275 Rogue 119 Adventurer 81 Explorer 75 Win Type - Total 18 Types 16/0/2/0/0/0/0/0/0 Lore% 44 Gallery% 75 Achievement% 60 Wizard Run 0 Options --------- ASCII 0 Keyboard 0 Movement Mouse Keybinds 0 Fullscreen 1 Font 12/Tallcaps Map View 83x54 Tactical HUD 1 Map Filters NONE Filters NONE Steam 1 RUN: e9390c96-2db1-475e-b126-7222589bf3b1